bitfinex/quotes_BTCUSD_20241002
["timestamp","ask_amount","ask_price","bid_price","bid_amount"]
[1727867972354,0.001,61209.0,61208.0,0.01549352]
[1727867972577,0.004,61209.0,61208.0,0.01549352]
[1727867973041,0.002,61209.0,61208.0,0.01549352]
[1727867973475,0.002,61209.0,61208.0,0.01649352]
[1727867974127,0.24535261,61216.0,61208.0,0.01649352]
[1727867974560,0.24535261,61216.0,61208.0,0.001821]
[1727867974805,0.001,61209.0,61208.0,0.002821]
[1727867975010,0.24535261,61216.0,61208.0,0.001821]
[1727867975234,0.24535261,61216.0,61208.0,0.01637972]
[1727867975235,0.001,61209.0,61208.0,0.01637972]
[1727867975474,0.24835261,61216.0,61208.0,0.000821]
[1727867975937,0.24935261,61216.0,61208.0,0.000821]
[1727867976185,0.02561679,61215.0,61208.0,0.000821]
[1727867976662,0.02561679,61215.0,61208.0,0.001821]
[1727867977149,0.02561679,61215.0,61208.0,0.000821]
[1727867977350,0.001,61216.0,61208.0,0.000821]
[1727867977572,0.1,61220.0,61208.0,0.000821]
[1727867977794,0.001,61209.0,61208.0,0.001821]
[1727867978286,0.001,61209.0,61208.0,0.01637062]
[1727867978535,0.003,61216.0,61208.0,0.01537062]
[1727867979042,0.101642,61222.0,61208.0,0.000821]
[1727867979307,0.24535261,61215.0,61208.0,0.001821]
[1727867979531,0.001,61209.0,61208.0,0.002821]
[1727867980027,0.001,61209.0,61208.0,0.001821]
[1727867980249,0.41219363,61209.0,61208.0,0.001821]
[1727867980672,0.41219363,61209.0,61208.0,0.000821]
[1727867981566,0.42119363,61209.0,61208.0,0.000821]
[1727867982549,0.14461858,61209.0,61208.0,0.000821]
[1727867982781,0.04461858,61209.0,61208.0,0.000821]
[1727867983019,0.019,61209.0,61208.0,0.000821]
[1727867985910,0.009,61209.0,61208.0,0.000821]
[1727867986200,0.04461753,61209.0,61208.0,0.000821]
[1727867987544,0.02561753,61209.0,61208.0,0.000821]
[1727867987755,0.03361753,61209.0,61208.0,0.000821]
[1727867987967,0.04361753,61209.0,61208.0,0.000821]
[1727867988183,0.12591753,61209.0,61208.0,0.000821]
[1727867988400,0.12491753,61209.0,61208.0,0.000821]
[1727867988627,0.13491753,61209.0,61208.0,0.000821]
[1727867989070,0.20791753,61209.0,61208.0,0.000821]
[1727867989514,0.21391753,61209.0,61208.0,0.000821]
[1727867990850,0.20791753,61209.0,61208.0,0.000821]
[1727867991064,0.23191753,61209.0,61208.0,0.000821]
[1727867991328,0.21791753,61209.0,61208.0,0.000821]
[1727867991544,0.22191753,61209.0,61208.0,0.000821]
[1727867991750,0.23591753,61209.0,61208.0,0.000821]
[1727867991971,0.2103,61209.0,61208.0,0.000821]
[1727867992421,0.1823,61209.0,61208.0,0.000821]
[1727867992642,0.2103,61209.0,61208.0,0.000821]
[1727867993894,0.1823,61209.0,61208.0,0.000821]
[1727867994383,0.2103,61209.0,61208.0,0.000821]
[1727867994632,0.1963,61209.0,61208.0,0.000821]
[1727867995121,0.20792166,61209.0,61208.0,0.000821]
[1727867995551,0.22192166,61209.0,61208.0,0.000821]
[1727867995764,0.23592166,61209.0,61208.0,0.000821]
[1727867996204,0.22192166,61209.0,61208.0,0.000821]
[1727867997350,0.1963,61209.0,61208.0,0.000821]
[1727867997592,0.1103,61209.0,61208.0,0.000821]
[1727867997810,0.1963,61209.0,61208.0,0.000821]
[1727867998309,0.1823,61209.0,61208.0,0.000821]
[1727867998599,0.1103,61209.0,61208.0,0.000821]
[1727867998825,0.0963,61209.0,61208.0,0.000821]
[1727867999017,0.0823,61209.0,61208.0,0.000821]
[1727867999282,0.0953,61209.0,61208.0,0.000821]
[1727867999506,0.1093,61209.0,61208.0,0.000821]
[1727868000175,0.13491927,61209.0,61208.0,0.000821]
[1727868000633,0.23491927,61209.0,61208.0,0.000821]
[1727868001672,0.41041927,61209.0,61208.0,0.000821]
[1727868001910,0.39641927,61209.0,61208.0,0.000821]
[1727868002125,0.39741927,61209.0,61208.0,0.000821]
[1727868002346,0.39741927,61209.0,61208.0,0.001821]
[1727868002347,0.3848,61209.0,61208.0,0.001821]
[1727868005443,0.41042018,61209.0,61208.0,0.001821]
[1727868006119,0.05262018,61209.0,61208.0,0.001821]
[1727868006366,0.027,61209.0,61208.0,0.001821]
[1727868008684,0.07232863,61213.0,61208.0,0.000821]
[1727868008911,0.013,61209.0,61208.0,0.000821]
[1727868009436,0.027,61209.0,61208.0,0.000821]
[1727868009684,0.014,61209.0,61208.0,0.000821]
[1727868010142,0.0922,61209.0,61208.0,0.000821]
[1727868010609,0.014,61209.0,61208.0,0.000821]
[1727868011318,0.007,61209.0,61208.0,0.001821]
[1727868011599,0.07232863,61213.0,61208.0,0.000821]
[1727868011866,0.01,61209.0,61208.0,0.001821]
[1727868012661,0.08532863,61213.0,61208.0,0.000821]
[1727868012662,0.07232863,61213.0,61208.0,0.000821]
[1727868012916,0.08532863,61213.0,61208.0,0.001821]
[1727868013169,0.09932863,61213.0,61208.0,0.000821]
[1727868013423,0.08632863,61213.0,61208.0,0.000821]
[1727868013656,0.08632863,61213.0,61209.0,0.01536351]
[1727868014204,0.08632863,61213.0,61208.0,0.000821]
[1727868014441,0.08632863,61213.0,61210.0,0.0153612]
[1727868014680,0.08632863,61213.0,61212.0,0.002]
[1727868014681,0.07232863,61213.0,61212.0,0.002]
[1727868014952,0.08632863,61213.0,61211.0,0.06194493]
[1727868015191,0.08632863,61213.0,61212.0,0.01533574]
[1727868015425,0.07232863,61213.0,61212.0,0.46710524]
[1727868015661,0.07432863,61213.0,61212.0,0.63910524]
[1727868015890,0.07432863,61213.0,61212.0,0.70775855]
[1727868016113,0.07232863,61213.0,61212.0,0.70875855]
[1727868016340,0.07432863,61213.0,61212.0,0.80775855]
[1727868016562,0.001642,61214.0,61213.0,0.05618292]
[1727868016795,0.001642,61214.0,61213.0,0.22087737]
[1727868017024,0.001642,61214.0,61213.0,0.23639766]
[1727868017477,0.001642,61214.0,61213.0,0.22939766]
[1727868017735,0.001642,61214.0,61213.0,0.23439766]
[1727868018211,0.001642,61214.0,61213.0,0.33639766]
[1727868018454,0.001642,61222.0,61219.0,0.28657505]
[1727868018684,0.001642,61222.0,61221.0,0.004]
[1727868018926,0.001642,61222.0,61221.0,0.27369445]
[1727868019207,0.001642,61222.0,61221.0,0.3385632]
[1727868019463,0.001642,61222.0,61221.0,0.62508848]
[1727868019687,0.001642,61222.0,61221.0,0.75151959]
[1727868019932,0.001642,61222.0,61221.0,0.79081539]
[1727868020657,0.001642,61222.0,61221.0,0.79581539]
[1727868020899,0.002642,61222.0,61221.0,0.79581539]
[1727868021380,0.001642,61222.0,61221.0,0.79581539]
[1727868021621,0.002642,61222.0,61221.0,0.80781539]
[1727868021864,0.002642,61222.0,61221.0,0.80281539]
[1727868022334,0.24635261,61237.0,61230.0,0.005]
[1727868022565,0.24635261,61237.0,61236.0,0.28857505]
[1727868022797,0.24635261,61237.0,61236.0,0.4532695]
[1727868023329,0.0794,61258.0,61238.0,0.005]
[1727868023334,0.1637,61263.0,61240.0,0.005]
[1727868023338,0.24535261,61247.0,61242.0,0.005]
[1727868023604,0.24535261,61247.0,61243.0,0.16469445]
[1727868023885,0.24535261,61247.0,61243.0,0.18157803]
[1727868024114,0.1637,61263.0,61243.0,0.18157803]
[1727868024402,0.1637,61263.0,61244.0,0.0186578]
[1727868024599,0.1637,61263.0,61244.0,0.18335225]
[1727868024834,0.001,61247.0,61245.0,0.01687898]
[1727868025081,0.001,61247.0,61244.0,0.18335225]
[1727868025317,0.24535261,61262.0,61246.0,0.63684617]
[1727868025557,0.24535261,61254.0,61247.0,0.04999551]
[1727868025792,0.002,61254.0,61248.0,0.16469445]
[1727868026224,0.002,61254.0,61249.0,0.01686977]
[1727868026456,0.24535261,61253.0,61249.0,0.16469445]
[1727868026685,0.002,61254.0,61250.0,0.03833647]
[1727868027406,0.24535261,61262.0,61250.0,0.03833647]
[1727868027853,0.24735261,61262.0,61250.0,0.03833647]
[1727868028355,0.24535261,61262.0,61250.0,0.03833647]
[1727868028583,0.24535261,61262.0,61250.0,0.001]
[1727868028584,0.1727,61261.0,61250.0,0.001]
[1727868028803,0.02559508,61260.0,61250.0,0.001]
[1727868029498,0.02559508,61260.0,61244.0,0.0186578]
[1727868029729,0.02559508,61260.0,61246.0,0.24535261]
[1727868029951,0.02559508,61260.0,61247.0,0.04455838]
[1727868030175,0.02559508,61260.0,61248.0,0.01687207]
[1727868030943,0.24535261,61255.0,61248.0,0.01687207]
[1727868031174,0.02559508,61260.0,61240.0,0.479]
[1727868031175,0.28657505,61249.0,61240.0,0.479]
[1727868031409,0.1727,61248.0,61245.0,0.24535261]
[1727868031632,0.1727,61248.0,61241.0,0.01671347]
[1727868031859,0.0823,61247.0,61226.0,0.484]
[1727868032119,0.0823,61247.0,61242.0,0.02522016]
[1727868032349,0.32765261,61247.0,61232.0,0.02453526]
[1727868032598,0.0823,61247.0,61243.0,0.02521772]
[1727868032834,0.0823,61247.0,61233.0,0.16469445]
[1727868032835,0.24535261,61246.0,61233.0,0.16669445]
[1727868033076,0.0823,61247.0,61234.0,0.07231574]
[1727868033322,0.0843,61247.0,61242.0,0.001]
[1727868033542,0.24535261,61246.0,61242.0,0.001]
[1727868033772,0.0843,61247.0,61242.0,0.001]
[1727868034875,0.02560097,61246.0,61234.0,0.23701019]
[1727868035106,0.02560097,61246.0,61243.0,0.02521772]
[1727868035323,0.02660097,61246.0,61236.0,0.28657505]
[1727868035540,0.02660097,61246.0,61244.0,0.02525699]
[1727868035801,0.02560097,61246.0,61237.0,0.16469445]
[1727868035989,0.0792,61253.0,61245.0,0.02525455]
[1727868036202,0.0792,61253.0,61238.0,0.06417547]
[1727868036203,0.011,61246.0,61238.0,0.06417547]
[1727868036421,0.011,61246.0,61239.0,0.41004706]
[1727868036663,0.011,61246.0,61240.0,0.03267553]
[1727868036907,0.011,61246.0,61244.0,0.005]
[1727868037131,0.008,61246.0,61241.0,0.47653381]
[1727868037364,0.008,61246.0,61245.0,0.02525455]
[1727868037587,0.008,61246.0,61241.0,0.16469445]
[1727868037812,0.001636,61247.0,61245.0,0.02525455]
[1727868038042,0.001636,61247.0,61237.0,0.002818]
[1727868038290,0.001636,61247.0,61238.0,0.24535261]
[1727868038529,0.001636,61247.0,61238.0,0.03223955]
[1727868038772,0.001636,61247.0,61238.0,0.007]
[1727868039011,0.001636,61247.0,61245.0,0.001]
[1727868039235,0.24535261,61246.0,61245.0,0.001]
[1727868039464,0.02723643,61247.0,61237.0,0.000818]
[1727868039740,0.02723643,61247.0,61238.0,0.24635261]
[1727868039987,0.02723643,61247.0,61239.0,0.02471706]
[1727868040438,0.02723643,61247.0,61238.0,0.001]
[1727868040905,0.32855261,61246.0,61238.0,0.001]
[1727868041175,0.28657505,61241.0,61238.0,0.001]
[1727868041393,0.2574,61240.0,61237.0,0.004818]
[1727868042135,0.28300609,61240.0,61237.0,0.004818]
[1727868042383,0.31214,61239.0,61237.0,0.000818]
[1727868042607,0.2567642,61240.0,61237.0,0.000818]
[1727868042608,0.1812,61238.0,61237.0,0.000818]
[1727868042834,0.1812,61238.0,61237.0,0.001818]
[1727868043562,0.1812,61238.0,61237.0,0.000818]
[1727868043809,0.0812,61238.0,61237.0,0.001818]
[1727868044831,0.009,61239.0,61237.0,0.002818]
[1727868045266,0.32655261,61244.0,61237.0,0.001818]
[1727868045498,0.32655261,61244.0,61237.0,0.000818]
[1727868045717,0.009,61238.0,61237.0,0.002818]
[1727868046177,0.28657505,61242.0,61237.0,0.002818]
[1727868046178,0.1,61241.0,61237.0,0.000818]
[1727868046436,0.2446,61240.0,61237.0,0.001818]
[1727868047150,0.2446,61240.0,61237.0,0.002818]
[1727868047391,0.2446,61240.0,61237.0,0.001818]
[1727868047392,0.0813,61240.0,61237.0,0.001818]
[1727868047626,0.0813,61240.0,61237.0,0.000818]
[1727868047839,0.0813,61240.0,61237.0,0.001818]
[1727868048066,0.009,61238.0,61237.0,0.001818]
[1727868048517,0.0813,61240.0,61237.0,0.000818]
[1727868048742,0.0903,61240.0,61237.0,0.001818]
[1727868049004,0.009,61240.0,61237.0,0.002818]
[1727868049247,0.001636,61240.0,61237.0,0.03075731]
[1727868049494,0.001636,61240.0,61238.0,0.02538406]
[1727868049745,0.001636,61240.0,61237.0,0.004818]
[1727868050000,0.02723944,61240.0,61237.0,0.003818]
[1727868050238,0.02723944,61240.0,61237.0,0.006818]
[1727868050700,0.02723944,61240.0,61237.0,0.000818]
[1727868051684,0.02723944,61240.0,61239.0,0.28657505]
[1727868051917,0.02723944,61240.0,61239.0,0.52204564]
[1727868052621,0.02723944,61240.0,61239.0,0.23547059]
[1727868052880,0.001636,61240.0,61239.0,0.23747059]
[1727868053104,0.001636,61240.0,61239.0,0.24247059]
[1727868053786,0.001636,61240.0,61239.0,0.24447059]
[1727868054016,0.001636,61240.0,61239.0,0.24247059]
[1727868055700,0.001636,61240.0,61239.0,0.24047059]
[1727868055952,0.001636,61240.0,61239.0,0.23747059]
[1727868056394,0.001636,61240.0,61239.0,0.02736739]
[1727868056615,0.001636,61240.0,61239.0,0.03236739]
[1727868057298,0.001636,61240.0,61239.0,0.005]
[1727868057567,0.001636,61240.0,61239.0,0.006]
[1727868060117,0.001636,61240.0,61239.0,0.001]
[1727868060343,0.001636,61240.0,61239.0,0.006]
[1727868062603,0.001636,61240.0,61239.0,0.19599973]
[1727868062833,0.001636,61240.0,61239.0,0.21903373]
[1727868063075,0.001636,61240.0,61239.0,0.23877973]
[1727868063303,0.001636,61240.0,61239.0,0.39741708]
[1727868063516,0.001636,61240.0,61239.0,0.75585358]
[1727868063747,0.001636,61240.0,61239.0,0.78028831]
[1727868063990,0.001636,61240.0,61239.0,0.75486285]
[1727868064223,0.001636,61247.0,61246.0,0.002]
[1727868064468,0.001636,61247.0,61246.0,0.50013309]
[1727868064705,0.001636,61247.0,61246.0,0.61148869]
[1727868064932,0.001636,61247.0,61246.0,0.5626251]
[1727868065181,0.001636,61247.0,61246.0,0.27605005]
[1727868065407,0.001636,61247.0,61246.0,0.25832424]
[1727868065627,0.001636,61247.0,61246.0,0.20382729]
[1727868066075,0.02723413,61247.0,61246.0,0.03913284]
[1727868066566,0.02723413,61247.0,61246.0,0.014]
[1727868067251,0.02723413,61247.0,61246.0,0.027]
[1727868067709,0.02723413,61247.0,61246.0,0.041]
[1727868067934,0.02723413,61247.0,61246.0,0.028]
[1727868068168,0.03023413,61247.0,61246.0,0.028]
[1727868068394,0.03023413,61247.0,61237.0,0.24617061]
[1727868068615,0.03023413,61247.0,61246.0,0.001]
[1727868070246,0.02723413,61247.0,61246.0,0.001]
[1727868070719,0.02923413,61247.0,61246.0,0.001]
[1727868070937,0.02923413,61247.0,61237.0,0.55736272]
[1727868071171,0.02923413,61247.0,61238.0,0.02514674]
[1727868071423,0.02923413,61247.0,61239.0,0.02152763]
[1727868071644,0.02723413,61247.0,61239.0,0.02152763]
[1727868071869,0.02723413,61247.0,61240.0,0.02514186]
[1727868072099,0.02923413,61247.0,61240.0,0.02514186]
[1727868072545,0.02923413,61247.0,61238.0,0.001]
[1727868072769,0.003636,61247.0,61238.0,0.001]
[1727868073475,0.001636,61247.0,61238.0,0.001]
[1727868073696,0.003636,61247.0,61237.0,0.000818]
[1727868073921,0.003636,61247.0,61239.0,0.001]
[1727868074413,0.001636,61247.0,61237.0,0.000818]
[1727868074639,0.001636,61247.0,61238.0,0.001]
[1727868074640,0.003636,61247.0,61238.0,0.001]
[1727868074865,0.003636,61247.0,61238.0,0.02520526]
[1727868075093,0.001636,61247.0,61239.0,0.001]
[1727868075311,0.001636,61247.0,61237.0,0.000818]
[1727868075312,0.003636,61247.0,61237.0,0.000818]
[1727868075526,0.003636,61247.0,61238.0,0.02520526]
[1727868075750,0.003636,61247.0,61237.0,0.000818]
[1727868075984,0.02560171,61245.0,61238.0,0.02520526]
[1727868076218,0.02560171,61245.0,61237.0,0.000818]
[1727868076708,0.02560171,61245.0,61238.0,0.02620526]
[1727868076941,0.02560171,61245.0,61237.0,0.000818]
[1727868077188,0.02560171,61245.0,61238.0,0.02520526]
[1727868077432,0.02560171,61245.0,61237.0,0.003818]
[1727868077433,0.24535261,61244.0,61237.0,0.003818]
[1727868077655,0.02560171,61245.0,61237.0,0.000818]
[1727868077886,0.02560171,61245.0,61238.0,0.02826243]
[1727868078130,0.02560171,61245.0,61238.0,0.02526243]
[1727868080614,0.02560171,61245.0,61238.0,0.02826243]
[1727868082825,0.001636,61247.0,61238.0,0.02826243]
[1727868083091,0.28657505,61241.0,61238.0,0.02826243]
[1727868083316,0.1782,61240.0,61238.0,0.02826243]
[1727868083551,0.1782,61240.0,61239.0,0.02544592]
[1727868084227,0.1782,61240.0,61238.0,0.001]
[1727868084920,0.36,61240.0,61239.0,0.001]
[1727868085373,0.1,61239.0,61238.0,0.000818]
[1727868086085,0.12560849,61239.0,61238.0,0.000818]
[1727868086320,0.02560849,61239.0,61238.0,0.000818]
[1727868087732,0.02560849,61239.0,61238.0,0.02203329]
[1727868087952,0.02960849,61239.0,61238.0,0.02203329]
[1727868088423,0.10340849,61239.0,61238.0,0.000818]
[1727868088649,0.27440849,61239.0,61238.0,0.000818]
[1727868088873,0.27840849,61239.0,61238.0,0.000818]
[1727868089820,0.95510249,61239.0,61238.0,0.000818]
[1727868090067,0.48462249,61239.0,61238.0,0.000818]
[1727868090303,0.37440849,61239.0,61238.0,0.000818]
[1727868090533,0.37840849,61239.0,61238.0,0.000818]
[1727868091007,0.37440849,61239.0,61238.0,0.000818]
[1727868091237,0.3538,61239.0,61238.0,0.001818]
[1727868091452,0.3538,61239.0,61238.0,0.002818]
[1727868091677,0.37940827,61239.0,61238.0,0.002818]
[1727868091907,0.37440827,61239.0,61238.0,0.001818]
[1727868092138,0.37940827,61239.0,61238.0,0.001818]
[1727868092574,0.37940827,61239.0,61238.0,0.002818]
[1727868092797,0.3538,61239.0,61238.0,0.002818]
[1727868093448,0.3538,61239.0,61238.0,0.001818]
[1727868093702,0.3488,61239.0,61238.0,0.000818]
[1727868093941,0.3588,61239.0,61238.0,0.001818]
[1727868094158,0.3608,61239.0,61238.0,0.002818]
[1727868095043,0.0898,61239.0,61238.0,0.002818]
[1727868095997,0.03760633,61239.0,61238.0,0.002818]
[1727868096937,0.002,61239.0,61238.0,0.001818]
[1727868097442,0.009,61239.0,61238.0,0.001818]
[1727868097880,0.001636,61240.0,61238.0,0.000818]
[1727868098101,0.008,61239.0,61238.0,0.001818]
[1727868098335,0.009,61239.0,61238.0,0.001818]
[1727868099483,0.001,61239.0,61238.0,0.000818]
[1727868099712,0.001,61239.0,61238.0,0.001818]
[1727868099931,0.02660619,61239.0,61238.0,0.001818]
[1727868100375,0.02660619,61239.0,61238.0,0.000818]
[1727868100609,0.03360619,61239.0,61238.0,0.001818]
[1727868101066,0.03460619,61239.0,61238.0,0.001818]
[1727868101743,0.03560619,61239.0,61238.0,0.001818]
[1727868102880,0.01,61239.0,61238.0,0.001818]
[1727868106043,0.03560665,61239.0,61238.0,0.001818]
[1727868106500,0.03560665,61239.0,61238.0,0.16651245]
[1727868106713,0.03560665,61239.0,61238.0,0.1832455]
[1727868106941,0.03560665,61239.0,61238.0,0.20510083]
[1727868107400,0.03560665,61239.0,61238.0,0.20410083]
[1727868107401,0.02760665,61239.0,61238.0,0.20410083]
[1727868107624,0.03560665,61239.0,61238.0,0.20510083]
[1727868107857,0.03360665,61239.0,61238.0,0.20510083]
[1727868108298,0.03360665,61239.0,61238.0,0.21310083]
[1727868108770,0.03360665,61239.0,61238.0,0.20410083]
[1727868108994,0.02560665,61239.0,61238.0,0.21210083]
[1727868109214,0.02560665,61239.0,61238.0,0.21710083]
[1727868110134,0.02560665,61239.0,61238.0,0.50367588]
[1727868110824,0.02560665,61239.0,61238.0,0.68077588]
[1727868111053,0.02560665,61239.0,61238.0,0.98190684]
[1727868111310,0.001636,61240.0,61239.0,0.20710318]
[1727868111533,0.00045753,61240.0,61239.0,0.888159]
[1727868111759,0.00045753,61240.0,61239.0,0.81194219]
[1727868112434,0.00045753,61240.0,61239.0,1.05929134]
[1727868112673,0.00045753,61240.0,61239.0,1.06629134]
[1727868112906,0.00045753,61240.0,61239.0,1.05529134]
[1727868113124,0.00045753,61240.0,61239.0,1.06529134]
[1727868113339,0.00045753,61240.0,61239.0,0.97444219]
[1727868113340,0.00145753,61240.0,61239.0,0.97444219]
[1727868113561,0.00145753,61240.0,61239.0,1.06985127]
[1727868113777,0.00045753,61240.0,61239.0,1.06285127]
[1727868114423,0.00045753,61240.0,61239.0,0.8985936]
[1727868114687,0.00045753,61240.0,61239.0,1.12647274]
[1727868114911,0.00045753,61240.0,61239.0,1.06312952]
[1727868115155,0.00045753,61240.0,61239.0,1.06112952]
[1727868115378,0.00045753,61240.0,61239.0,0.91957303]
[1727868115619,0.00045753,61240.0,61239.0,0.91157303]
[1727868115841,0.00045753,61240.0,61239.0,1.14848167]
[1727868116066,0.00045753,61240.0,61239.0,0.92057303]
[1727868116296,0.00045753,61240.0,61239.0,0.89857303]
[1727868116516,0.00045753,61240.0,61239.0,1.12624776]
[1727868116731,0.00045753,61240.0,61239.0,1.14024776]
[1727868116963,0.00045753,61240.0,61239.0,0.91257303]
[1727868117177,0.0260548,61240.0,61239.0,0.83925038]
[1727868117644,0.0260548,61240.0,61239.0,0.90210861]
[1727868117869,0.0260548,61240.0,61239.0,0.88810861]
[1727868118083,0.0260548,61240.0,61239.0,0.87410861]
[1727868118312,0.0260548,61240.0,61239.0,0.89810861]
[1727868118751,0.0260548,61240.0,61239.0,0.84925038]
[1727868118973,0.0260548,61240.0,61239.0,0.83925038]
[1727868119190,0.0260548,61240.0,61239.0,0.85325038]
[1727868119868,0.0260548,61240.0,61239.0,0.31957062]
[1727868120577,0.00045753,61240.0,61239.0,0.31957062]
[1727868120801,0.00045753,61240.0,61239.0,0.32157062]
[1727868121036,0.00045753,61240.0,61239.0,0.30557062]
[1727868121268,0.00045753,61240.0,61239.0,0.21446744]
[1727868121729,0.07955753,61240.0,61239.0,0.02177299]
[1727868121950,0.07955753,61240.0,61239.0,0.014]
[1727868122166,0.07955753,61240.0,61238.0,0.000818]
[1727868122390,0.07955753,61240.0,61239.0,0.014]
[1727868122613,0.07955753,61240.0,61239.0,0.028]
[1727868123526,0.07955753,61240.0,61239.0,0.014]
[1727868123986,0.07955753,61240.0,61238.0,0.000818]
[1727868124433,0.07955753,61240.0,61239.0,0.009]
[1727868124657,0.07955753,61240.0,61238.0,0.000818]
[1727868124866,0.07955753,61240.0,61239.0,0.011]
[1727868125308,0.07955753,61240.0,61239.0,0.006]
[1727868125541,0.07955753,61240.0,61239.0,0.008]
[1727868127350,0.10516196,61240.0,61239.0,0.008]
[1727868129398,0.61184696,61240.0,61239.0,0.008]
[1727868129618,0.57483796,61240.0,61239.0,0.008]
[1727868129845,0.57483796,61240.0,61239.0,0.006]
[1727868130058,0.57483796,61240.0,61239.0,0.007]
[1727868130960,0.3378,61239.0,61237.0,0.000818]
[1727868131192,0.62397976,61238.0,61237.0,0.000818]
[1727868131397,1.35707076,61238.0,61237.0,0.000818]
[1727868131618,1.22990603,61238.0,61237.0,0.000818]
[1727868132089,1.09159276,61238.0,61237.0,0.000818]
[1727868132310,0.97973776,61238.0,61237.0,0.000818]
[1727868132756,0.97973776,61238.0,61222.0,0.24535261]
[1727868132984,0.36237976,61225.0,61224.0,0.24535261]
[1727868133210,0.36237976,61225.0,61213.0,0.24617361]
[1727868133211,0.0762,61224.0,61213.0,0.24617361]
[1727868133428,0.0823,61218.0,61214.0,0.24535261]
[1727868133648,0.0823,61218.0,61213.0,0.000821]
[1727868133649,0.19114696,61215.0,61213.0,0.000821]
[1727868135216,0.19914696,61215.0,61213.0,0.001821]
[1727868135434,0.3448,61214.0,61213.0,0.001821]
[1727868135695,0.3448,61214.0,61213.0,0.002821]
[1727868135932,0.1,61213.0,61201.0,0.001021]
[1727868136151,0.53594696,61209.0,61201.0,0.001021]
[1727868136828,0.58925322,61209.0,61201.0,0.001021]
[1727868137054,0.3448,61209.0,61201.0,0.001021]
[1727868137270,0.2448,61209.0,61201.0,0.001021]
[1727868137487,0.0771,61209.0,61201.0,0.001021]
[1727868138123,0.0771,61209.0,61208.0,0.001821]
[1727868138124,0.0871,61209.0,61208.0,0.001821]
[1727868138351,0.01,61209.0,61208.0,0.001821]
[1727868138587,0.24535261,61216.0,61208.0,0.16551545]
[1727868138790,0.24535261,61216.0,61209.0,0.20036069]
[1727868139001,0.24535261,61216.0,61209.0,0.22367925]
[1727868140492,0.24535261,61216.0,61209.0,0.0589848]
[1727868140719,0.24535261,61216.0,61209.0,0.02331856]
[1727868140952,0.24535261,61216.0,61208.0,0.000821]
[1727868141175,0.28658109,61221.0,61208.0,0.000821]
[1727868141176,0.24535261,61220.0,61208.0,0.000821]
[1727868141624,0.0773,61219.0,61209.0,0.004]
[1727868141842,0.0773,61219.0,61208.0,0.000821]
[1727868142056,0.14021834,61219.0,61208.0,0.000821]
[1727868142300,0.14021834,61219.0,61208.0,0.004821]
[1727868142534,0.0773,61219.0,61208.0,0.000821]
[1727868142745,0.0803,61219.0,61208.0,0.000821]
[1727868142961,0.0803,61219.0,61209.0,0.001]
[1727868143193,0.0803,61219.0,61208.0,0.000821]
[1727868144097,0.0773,61219.0,61208.0,0.000821]
[1727868144317,0.15727337,61219.0,61208.0,0.000821]
[1727868144755,0.1793,61219.0,61208.0,0.001821]
[1727868146760,0.0793,61219.0,61208.0,0.001821]
[1727868148179,0.0256165,61217.0,61209.0,0.41004706]
[1727868148431,0.0256165,61217.0,61209.0,0.16469445]
[1727868148656,0.0256165,61217.0,61210.0,0.02334368]
[1727868148875,0.0256165,61217.0,61211.0,0.21233847]
[1727868149307,0.0256165,61217.0,61212.0,0.02333879]
[1727868150241,0.0256165,61217.0,61213.0,0.16469445]
[1727868150466,0.24535261,61216.0,61214.0,0.0233339]
[1727868150695,0.0256165,61217.0,61210.0,0.003]
[1727868150914,0.0798,61216.0,61215.0,0.02333146]
[1727868151169,0.0798,61216.0,61208.0,0.000821]
[1727868151616,0.0798,61216.0,61211.0,0.003]
[1727868151841,0.24535261,61215.0,61208.0,0.000821]
[1727868152071,0.0798,61216.0,61208.0,0.000821]
[1727868152538,0.3507,61212.0,61208.0,0.000821]
[1727868153185,0.3507,61212.0,61208.0,0.004821]
[1727868154545,0.3507,61212.0,61208.0,0.000821]
[1727868155002,0.3637,61212.0,61208.0,0.001821]
[1727868155905,0.081,61211.0,61208.0,0.001821]
[1727868156125,0.1,61210.0,61208.0,0.001821]
[1727868156354,0.081,61209.0,61208.0,0.001821]
[1727868156803,0.2066206,61209.0,61208.0,0.001821]
[1727868157020,0.181,61209.0,61208.0,0.000821]
[1727868157232,0.21844796,61209.0,61208.0,0.000821]
[1727868157532,0.27518531,61209.0,61208.0,0.001821]
[1727868157736,0.27518531,61209.0,61208.0,0.000821]
[1727868158197,0.086,61209.0,61208.0,0.000821]
[1727868158663,0.081,61209.0,61208.0,0.000821]
[1727868158902,0.086,61209.0,61208.0,0.000821]
[1727868159126,0.088,61209.0,61208.0,0.000821]
[1727868159780,0.21362096,61209.0,61208.0,0.000821]
[1727868160252,0.34714852,61209.0,61208.0,0.000821]
[1727868160696,0.28541117,61209.0,61208.0,0.000821]
[1727868160918,0.21162096,61209.0,61208.0,0.000821]
[1727868161147,0.21362096,61209.0,61208.0,0.000821]
[1727868161594,0.11362096,61209.0,61208.0,0.000821]
[1727868161823,0.10662096,61209.0,61208.0,0.000821]
[1727868162272,0.11362096,61209.0,61208.0,0.000821]
[1727868162538,0.11162096,61209.0,61208.0,0.000821]
[1727868162763,0.082,61209.0,61208.0,0.000821]
[1727868164103,0.086,61209.0,61208.0,0.000821]
[1727868164537,0.15002811,61209.0,61208.0,0.000821]
[1727868164972,0.086,61209.0,61208.0,0.000821]
[1727868165895,0.11161988,61209.0,61208.0,0.000821]
[1727868167921,0.10761988,61209.0,61208.0,0.000821]
[1727868168149,0.10661988,61209.0,61208.0,0.000821]
[1727868168375,0.11061988,61209.0,61208.0,0.000821]
[1727868168589,0.11161988,61209.0,61208.0,0.000821]
[1727868169252,0.11061988,61209.0,61208.0,0.000821]
[1727868169704,0.11161988,61209.0,61208.0,0.000821]
[1727868170167,0.03061988,61209.0,61208.0,0.000821]
[1727868170391,0.02661988,61209.0,61208.0,0.000821]
[1727868170617,0.005,61209.0,61208.0,0.000821]
[1727868171536,0.001,61209.0,61208.0,0.000821]